Workbook

Sheet sheet1
A1: 2025年10月17日湖北贸易粮竞价采购交易清单
A2: 标的号 | B2: 地储编码 | C2: 委托方 | D2: 委托收购库点 | E2: 实际存储库点编码 | F2: 实际存储库点 | G2: 仓号 | H2: 产地 | I2: 生产年限 | J2: 品种 | K2: 收购等级 | L2: 所在货位混合扦样等级 | M2: 数量 | N2: 交割开始日期 | O2: 交割截止日期 | P2: 付款截止日期 | Q2: 近期水分% | R2: 近期杂质% | S2: 容重 | T2: 承储库日正常出库能力 | U2: 起报价 | V2: 常用出库方式（铁路/公路/水路） | W2: 是否具备40吨以上大型运输车辆装车计量能力（是/否） | X2: 有无铁路专用线 | Y2: 是否露天储存 | Z2: 距最近车站\码头距离km | AA2: 储粮形态(包装/散装) | AB2: 备注
D3: 合计 | M3: =SUM(M4:M10) -> 14200
A4: spymcg251017101 | C4: 鄂州市兴粮粮油贸易有限公司 | E4: 42002424 | F4: 金控华粮（湖北）粮食物流有限公司 | G4: 401 | I4: 2025 | J4: 玉米 | K4: 二等 | L4: 二等 | M4: 3500 | N4: 2025-10-17 | O4: 2025-11-30 | P4: 2025-11-30 | Q4: ≤13.5 | R4: ≤1.0 | S4: ≥690 | T4: 200 | U4: 2380 | AB4: 散装到库价
A5: spymcg251017102 | C5: 鄂州市兴粮粮油贸易有限公司 | E5: 42002424 | F5: 金控华粮（湖北）粮食物流有限公司 | G5: 401 | I5: 2025 | J5: 玉米 | K5: 二等 | L5: 二等 | M5: 3600 | N5: 2025-10-17 | O5: 2025-11-30 | P5: 2025-11-30 | Q5: ≤13.5 | R5: ≤1.0 | S5: ≥690 | T5: 200 | U5: 2380 | AB5: 散装到库价
A6: spymcg251017103 | C6: 鄂州市兴粮粮油贸易有限公司 | E6: 42002424 | F6: 金控华粮（湖北）粮食物流有限公司 | G6: 402 | I6: 2025 | J6: 玉米 | K6: 二等 | L6: 二等 | M6: 3500 | N6: 2025-10-17 | O6: 2025-11-30 | P6: 2025-11-30 | Q6: ≤13.5 | R6: ≤1.0 | S6: ≥690 | T6: 200 | U6: 2380 | AB6: 散装到库价
A7: spymcg251017104 | C7: 鄂州市兴粮粮油贸易有限公司 | E7: 42002424 | F7: 金控华粮（湖北）粮食物流有限公司 | G7: 402 | I7: 2025 | J7: 玉米 | K7: 二等 | L7: 二等 | M7: 3600 | N7: 2025-10-17 | O7: 2025-11-30 | P7: 2025-11-30 | Q7: ≤13.5 | R7: ≤1.0 | S7: ≥690 | T7: 200 | U7: 2380 | AB7: 散装到库价

Sheet Sheet2
E2: 不完善粒 | G2: 水分 | I2: 杂质
C3: 1 | D3: 968 | E3: 11.2% | F3: =$D3*E3 -> 108.416 | G3: 11.6% | H3: =$D3*G3 -> 112.288 | I3: 0.4% | J3: =$D3*I3 -> 3.872
C4: 2 | D4: 950 | E4: 11.6% | F4: =$D4*E4 -> 110.2 | G4: 11.5% | H4: 109.25 | I4: 0.4% | J4: 3.8
C5: 3 | D5: 949 | E5: 12.5% | F5: =$D5*E5 -> 118.625 | G5: 11.7% | H5: 111.033 | I5: 0.4% | J5: 3.796
C6: 4 | D6: 929 | E6: 11.8% | F6: =$D6*E6 -> 109.622 | G6: 10.3% | H6: 95.687 | I6: 0.2% | J6: 1.858
D7: =SUM(D3:D6) -> 3796 | E7: =F7/$D$7 -> 11.8% | F7: 446.863 | G7: =H7/$D$7 -> 11.3% | H7: =SUM(H3:H6) -> 428.258 | I7: =J7/$D$7 -> 0.4% | J7: =SUM(J3:J6) -> 13.326
